[Event "Titled Tuesday Blitz March 29 Early 2022"]
[White "Dev, Shah"]
[Black "Abdusattorov, Nodirbek"]
[WhiteFideId "35019058"]
[BlackFideId "14204118"]
[WhiteElo "2075"]
[BlackElo "2663"]
[Result "0-1"]
[Round "06"]
[TimeControl "180+1"]
[Date "2022.03.29"]
[WhiteClock "0:01:09"]
[BlackClock "0:01:18"]

1. d4 {[%clk 0:03:00]}  Nf6 {[%clk 0:03:00]} 2. c4 {[%clk 0:03:01]}  e6 {[%clk 0:03:00]} 3. Nf3 {[%clk 0:03:01]}  d5 {[%clk 0:03:00]} 4. g3 {[%clk 0:03:01]}  Bb4+ {[%clk 0:02:57]} 5. Nbd2 {[%clk 0:03:01]}  a5 {[%clk 0:02:58]} 6. Bg2 {[%clk 0:03:00]}  O-O {[%clk 0:02:57]} 7. O-O {[%clk 0:03:00]}  b6 {[%clk 0:02:58]} 8. Ne5 {[%clk 0:02:58]}  Bb7 {[%clk 0:02:57]} 9. Ndf3 {[%clk 0:02:51]}  dxc4 {[%clk 0:02:39]} 10. Nxc4 {[%clk 0:02:48]}  Nbd7 {[%clk 0:02:39]} 11. a3 {[%clk 0:02:43]}  Be7 {[%clk 0:02:38]} 12. Bf4 {[%clk 0:02:43]}  Nd5 {[%clk 0:02:25]} 13. Bd2 {[%clk 0:02:37]}  c5 {[%clk 0:02:23]} 14. dxc5 {[%clk 0:02:29]}  Nxc5 {[%clk 0:02:24]} 15. Rc1 {[%clk 0:02:27]}  a4 {[%clk 0:02:20]} 16. Nd4 {[%clk 0:02:21]}  Rc8 {[%clk 0:02:20]} 17. Be1 {[%clk 0:02:10]}  Bf6 {[%clk 0:02:19]} 18. e3 {[%clk 0:02:08]}  Bxd4 {[%clk 0:02:18]} 19. exd4 {[%clk 0:02:07]}  Nb3 {[%clk 0:02:19]} 20. Rc2 {[%clk 0:02:07]}  Ba6 {[%clk 0:02:18]} 21. Ne5 {[%clk 0:01:34]}  Rxc2 {[%clk 0:02:15]} 22. Qxc2 {[%clk 0:01:34]}  Bxf1 {[%clk 0:02:10]} 23. Bxf1 {[%clk 0:01:33]}  Qc7 {[%clk 0:01:58]} 24. Qe4 {[%clk 0:01:30]}  Qc1 {[%clk 0:01:55]} 25. Bd3 {[%clk 0:01:28]}  Nf6 {[%clk 0:01:54]} 26. Qe3 {[%clk 0:01:25]}  Qxb2 {[%clk 0:01:51]} 27. Bb4 {[%clk 0:01:25]}  Rc8 {[%clk 0:01:46]} 28. Bc4 {[%clk 0:01:23]}  Qxd4 {[%clk 0:01:39]} 29. Qe2 {[%clk 0:01:15]}  Qe4 {[%clk 0:01:32]} 30. Qb2 {[%clk 0:01:12]}  Rxc4 {[%clk 0:01:26]} 31. Nxc4 {[%clk 0:01:09]}  Qxc4 {[%clk 0:01:27]} 32. Qe5 {[%clk 0:01:09]}  h6 {[%clk 0:01:18]} 0-1


[Site "https://www.chess.com"]

[Event "Titled Tuesday Blitz March 29 Early 2022"]
[White "Estrada Nieto, Julian"]
[Black "Sergienko, Sergey"]
[WhiteFideId "5101018"]
[BlackFideId "4115791"]
[WhiteElo "2246"]
[BlackElo "2193"]
[Result "0-1"]
[Round "06"]
[TimeControl "180+1"]
[Date "2022.03.30"]
[WhiteClock "0:00:06"]
[BlackClock "0:00:06"]

1. e4 {[%clk 0:03:00]}  c5 {[%clk 0:02:59]} 2. Nf3 {[%clk 0:03:00]}  a6 {[%clk 0:02:58]} 3. c4 {[%clk 0:02:58]}  e6 {[%clk 0:02:58]} 4. Nc3 {[%clk 0:02:57]}  d6 {[%clk 0:02:57]} 5. Be2 {[%clk 0:02:57]}  Nf6 {[%clk 0:02:55]} 6. d4 {[%clk 0:02:57]}  cxd4 {[%clk 0:02:54]} 7. Nxd4 {[%clk 0:02:57]}  Qc7 {[%clk 0:02:53]} 8. O-O {[%clk 0:02:57]}  Be7 {[%clk 0:02:53]} 9. Be3 {[%clk 0:02:53]}  b6 {[%clk 0:02:53]} 10. Rc1 {[%clk 0:02:52]}  Bb7 {[%clk 0:02:53]} 11. f3 {[%clk 0:02:52]}  Nbd7 {[%clk 0:02:52]} 12. Qd2 {[%clk 0:02:51]}  O-O {[%clk 0:02:51]} 13. Rfd1 {[%clk 0:02:51]}  Rac8 {[%clk 0:02:51]} 14. Bf1 {[%clk 0:02:46]}  Qb8 {[%clk 0:02:51]} 15. a3 {[%clk 0:02:46]}  Rfe8 {[%clk 0:02:51]} 16. b4 {[%clk 0:02:44]}  Bd8 {[%clk 0:02:51]} 17. Nb3 {[%clk 0:02:39]}  Bc7 {[%clk 0:02:51]} 18. Bf4 {[%clk 0:02:21]}  Ne5 {[%clk 0:02:18]} 19. Bxe5 {[%clk 0:02:17]}  dxe5 {[%clk 0:02:17]} 20. c5 {[%clk 0:02:17]}  b5 {[%clk 0:02:06]} 21. a4 {[%clk 0:02:03]}  Bc6 {[%clk 0:02:05]} 22. axb5 {[%clk 0:02:02]}  axb5 {[%clk 0:02:05]} 23. Ra1 {[%clk 0:02:00]}  Qb7 {[%clk 0:01:51]} 24. Qe2 {[%clk 0:02:00]}  Ra8 {[%clk 0:01:45]} 25. Nxb5 {[%clk 0:01:53]}  Rxa1 {[%clk 0:01:09]} 26. Rxa1 {[%clk 0:01:51]}  Bxb5 {[%clk 0:00:59]} 27. Qxb5 {[%clk 0:01:51]}  Qxb5 {[%clk 0:00:59]} 28. Bxb5 {[%clk 0:01:51]}  Rb8 {[%clk 0:00:59]} 29. Ra7 {[%clk 0:01:27]}  Rxb5 {[%clk 0:00:57]} 30. Rxc7 {[%clk 0:01:26]}  g5 {[%clk 0:00:57]} 31. c6 {[%clk 0:01:08]}  Rxb4 {[%clk 0:00:56]} 32. Rb7 {[%clk 0:01:08]}  Rc4 {[%clk 0:00:54]} 33. c7 {[%clk 0:01:01]}  Kg7 {[%clk 0:00:53]} 34. Na5 {[%clk 0:01:00]}  Rc1+ {[%clk 0:00:47]} 35. Kf2 {[%clk 0:01:00]}  Ne8 {[%clk 0:00:47]} 36. Rb5 {[%clk 0:00:44]}  Nxc7 {[%clk 0:00:41]} 37. Rb2 {[%clk 0:00:34]}  Kf6 {[%clk 0:00:37]} 38. Nb3 {[%clk 0:00:33]}  Rc3 {[%clk 0:00:35]} 39. Nd2 {[%clk 0:00:30]}  h5 {[%clk 0:00:31]} 40. Nf1 {[%clk 0:00:29]}  Na6 {[%clk 0:00:28]} 41. Ne3 {[%clk 0:00:28]}  Nc5 {[%clk 0:00:27]} 42. Ke2 {[%clk 0:00:26]}  Nd3 {[%clk 0:00:26]} 43. Rb8 {[%clk 0:00:23]}  Nf4+ {[%clk 0:00:26]} 44. Kf2 {[%clk 0:00:21]}  Ra3 {[%clk 0:00:24]} 45. Rh8 {[%clk 0:00:15]}  Ra2+ {[%clk 0:00:23]} 46. Kf1 {[%clk 0:00:15]}  Kg6 {[%clk 0:00:22]} 47. Rg8+ {[%clk 0:00:14]}  Kh6 {[%clk 0:00:22]} 48. Rh8+ {[%clk 0:00:14]}  Kg7 {[%clk 0:00:21]} 49. Rb8 {[%clk 0:00:13]}  Nd3 {[%clk 0:00:20]} 50. Rb7 {[%clk 0:00:09]}  Rf2+ {[%clk 0:00:18]} 51. Kg1 {[%clk 0:00:09]}  Re2 {[%clk 0:00:18]} 52. Nf1 {[%clk 0:00:08]}  Nf4 {[%clk 0:00:18]} 53. Rb1 {[%clk 0:00:07]}  Rxg2+ {[%clk 0:00:17]} 54. Kh1 {[%clk 0:00:08]}  Rf2 {[%clk 0:00:17]} 55. Ne3 {[%clk 0:00:07]}  Rxf3 {[%clk 0:00:16]} 56. Re1 {[%clk 0:00:06]}  g4 {[%clk 0:00:15]} 57. Kg1 {[%clk 0:00:06]}  Kg6 {[%clk 0:00:14]} 58. Nf1 {[%clk 0:00:06]}  Kg5 {[%clk 0:00:12]} 59. Nd2 {[%clk 0:00:06]}  Nh3+ {[%clk 0:00:11]} 60. Kh1 {[%clk 0:00:05]}  Rf2 {[%clk 0:00:10]} 61. Nc4 {[%clk 0:00:05]}  f6 {[%clk 0:00:08]} 62. Nd6 {[%clk 0:00:05]}  h4 {[%clk 0:00:07]} 63. Nf7+ {[%clk 0:00:06]}  Kg6 {[%clk 0:00:07]} 64. Nd8 {[%clk 0:00:06]}  g3 {[%clk 0:00:06]} 65. hxg3 {[%clk 0:00:06]}  hxg3 {[%clk 0:00:06]} 66. Rg1 {[%clk 0:00:06]}  Rh2# {[%clk 0:00:06]} 0-1


[Site "https://www.chess.com"]

[Event "Titled Tuesday Blitz March 29 Early 2022"]
[White "Fajdetic, Hrvoje"]
[Black "Shtyka, Sergey"]
[WhiteFideId "14501945"]
[BlackFideId "4138465"]
[WhiteElo "2172"]
[BlackElo "2014"]
[Result "1/2-1/2"]
[Round "06"]
[TimeControl "180+1"]
[Date "2022.03.30"]
[WhiteClock "0:00:12"]
[BlackClock "0:00:09"]

1. d4 {[%clk 0:02:55]}  c5 {[%clk 0:02:58]} 2. d5 {[%clk 0:02:55]}  e5 {[%clk 0:02:57]} 3. Nc3 {[%clk 0:02:55]}  d6 {[%clk 0:02:58]} 4. e4 {[%clk 0:02:55]}  Be7 {[%clk 0:02:58]} 5. f4 {[%clk 0:02:55]}  exf4 {[%clk 0:02:58]} 6. Bxf4 {[%clk 0:02:54]}  a6 {[%clk 0:02:58]} 7. a4 {[%clk 0:02:54]}  Bf6 {[%clk 0:02:57]} 8. Nf3 {[%clk 0:02:53]}  Ne7 {[%clk 0:02:57]} 9. Be2 {[%clk 0:02:52]}  Ng6 {[%clk 0:02:57]} 10. Bg3 {[%clk 0:02:52]}  Qe7 {[%clk 0:02:57]} 11. O-O {[%clk 0:02:50]}  Nd7 {[%clk 0:02:57]} 12. Qd2 {[%clk 0:02:46]}  O-O {[%clk 0:02:56]} 13. Rab1 {[%clk 0:02:46]}  Nde5 {[%clk 0:02:56]} 14. b4 {[%clk 0:02:42]}  b6 {[%clk 0:02:46]} 15. a5 {[%clk 0:02:40]}  cxb4 {[%clk 0:02:44]} 16. Rxb4 {[%clk 0:02:39]}  bxa5 {[%clk 0:02:44]} 17. Ra4 {[%clk 0:02:38]}  Qc7 {[%clk 0:02:40]} 18. Nxe5 {[%clk 0:02:31]}  Bxe5 {[%clk 0:02:40]} 19. Bxe5 {[%clk 0:02:25]}  Nxe5 {[%clk 0:02:41]} 20. Nd1 {[%clk 0:02:18]}  Bg4 {[%clk 0:02:25]} 21. Bxg4 {[%clk 0:02:16]}  Nxg4 {[%clk 0:02:25]} 22. Rxa5 {[%clk 0:02:12]}  Rfc8 {[%clk 0:02:08]} 23. Ra2 {[%clk 0:02:08]}  Qc4 {[%clk 0:01:51]} 24. c3 {[%clk 0:02:00]}  Qxe4 {[%clk 0:01:39]} 25. Rf4 {[%clk 0:01:52]}  Qg6 {[%clk 0:01:38]} 26. Rfa4 {[%clk 0:01:45]}  Ne5 {[%clk 0:01:27]} 27. Qe2 {[%clk 0:01:32]}  Qf6 {[%clk 0:00:37]} 28. Rxa6 {[%clk 0:01:25]}  Rab8 {[%clk 0:00:36]} 29. Ra1 {[%clk 0:01:21]}  g6 {[%clk 0:00:36]} 30. R6a4 {[%clk 0:01:19]}  Qf5 {[%clk 0:00:33]} 31. Re4 {[%clk 0:01:16]}  Qd7 {[%clk 0:00:26]} 32. h3 {[%clk 0:01:13]}  Ra8 {[%clk 0:00:26]} 33. Rxa8 {[%clk 0:01:08]}  Rxa8 {[%clk 0:00:25]} 34. Ne3 {[%clk 0:01:05]}  Ra1+ {[%clk 0:00:23]} 35. Kh2 {[%clk 0:01:05]}  Qc7 {[%clk 0:00:22]} 36. Nc4 {[%clk 0:01:02]}  Nxc4 {[%clk 0:00:16]} 37. Qxc4 {[%clk 0:01:00]}  Qxc4 {[%clk 0:00:15]} 38. Rxc4 {[%clk 0:01:01]}  Rd1 {[%clk 0:00:14]} 39. Rc8+ {[%clk 0:00:57]}  Kg7 {[%clk 0:00:14]} 40. c4 {[%clk 0:00:58]}  Kf6 {[%clk 0:00:14]} 41. Rc7 {[%clk 0:00:55]}  h5 {[%clk 0:00:13]} 42. Kg3 {[%clk 0:00:55]}  Rf1 {[%clk 0:00:13]} 43. c5 {[%clk 0:00:24]}  dxc5 {[%clk 0:00:14]} 44. Rxc5 {[%clk 0:00:22]}  Ke5 {[%clk 0:00:14]} 45. Ra5 {[%clk 0:00:20]}  f6 {[%clk 0:00:13]} 46. h4 {[%clk 0:00:20]}  Rf5 {[%clk 0:00:12]} 47. d6+ {[%clk 0:00:15]}  Kxd6 {[%clk 0:00:09]} 48. Rxf5 {[%clk 0:00:15]}  gxf5 {[%clk 0:00:10]} 49. Kf4 {[%clk 0:00:14]}  Ke6 {[%clk 0:00:08]} 50. g3 {[%clk 0:00:14]}  Kf7 {[%clk 0:00:08]} 51. Kxf5 {[%clk 0:00:15]}  Kg7 {[%clk 0:00:08]} 52. g4 {[%clk 0:00:10]}  hxg4 {[%clk 0:00:08]} 53. Kxg4 {[%clk 0:00:11]}  Kg6 {[%clk 0:00:08]} 54. h5+ {[%clk 0:00:11]}  Kh6 {[%clk 0:00:08]} 55. Kf5 {[%clk 0:00:11]}  Kxh5 {[%clk 0:00:09]} 56. Kxf6 {[%clk 0:00:12]} 1/2-1/2


[Site "https://www.chess.com"]

[Event "Titled Tuesday Blitz March 29 Early 2022"]
[White "Fedoseev, Vladimir"]
[Black "Papasimakopoulos, Alexandros"]
[WhiteFideId "24130737"]
[BlackFideId "4244125"]
[WhiteElo "2726"]
[BlackElo "2340"]
[Result "1-0"]
[Round "06"]
[TimeControl "180+1"]
[Date "2022.03.29"]
[WhiteClock "0:01:18"]
[BlackClock "0:00:19"]

1. e4 {[%clk 0:03:00]}  e6 {[%clk 0:03:00]} 2. d4 {[%clk 0:02:55]}  d5 {[%clk 0:03:00]} 3. e5 {[%clk 0:02:55]}  b6 {[%clk 0:02:59]} 4. c4 {[%clk 0:02:54]}  Bb4+ {[%clk 0:02:58]} 5. Nc3 {[%clk 0:02:53]}  Bxc3+ {[%clk 0:02:52]} 6. bxc3 {[%clk 0:02:53]}  Ba6 {[%clk 0:02:50]} 7. Qg4 {[%clk 0:02:52]}  g6 {[%clk 0:02:44]} 8. Bg5 {[%clk 0:02:50]}  Qd7 {[%clk 0:02:39]} 9. cxd5 {[%clk 0:02:50]}  exd5 {[%clk 0:02:37]} 10. Qf3 {[%clk 0:02:23]}  Bxf1 {[%clk 0:02:35]} 11. Kxf1 {[%clk 0:02:24]}  Nc6 {[%clk 0:02:28]} 12. Ne2 {[%clk 0:02:22]}  h6 {[%clk 0:02:24]} 13. Bh4 {[%clk 0:02:20]}  g5 {[%clk 0:02:13]} 14. Bg3 {[%clk 0:02:20]}  O-O-O {[%clk 0:02:13]} 15. h4 {[%clk 0:02:17]}  g4 {[%clk 0:01:58]} 16. Qf4 {[%clk 0:02:14]}  h5 {[%clk 0:01:57]} 17. Kg1 {[%clk 0:02:01]}  Nge7 {[%clk 0:01:56]} 18. Kh2 {[%clk 0:01:49]}  Qf5 {[%clk 0:01:46]} 19. e6 {[%clk 0:01:42]}  Qxf4 {[%clk 0:01:38]} 20. Nxf4 {[%clk 0:01:43]}  fxe6 {[%clk 0:01:23]} 21. Nxe6 {[%clk 0:01:43]}  Rd7 {[%clk 0:01:23]} 22. Rhe1 {[%clk 0:01:44]}  Nf5 {[%clk 0:01:23]} 23. Nf4 {[%clk 0:01:44]}  Nce7 {[%clk 0:01:07]} 24. Re6 {[%clk 0:01:42]}  Nxg3 {[%clk 0:00:58]} 25. fxg3 {[%clk 0:01:41]}  Nf5 {[%clk 0:00:56]} 26. Re5 {[%clk 0:01:41]}  Rf7 {[%clk 0:00:51]} 27. Nxd5 {[%clk 0:01:32]}  Kb7 {[%clk 0:00:51]} 28. Rf1 {[%clk 0:01:29]}  Rhf8 {[%clk 0:00:48]} 29. Rf4 {[%clk 0:01:28]}  c6 {[%clk 0:00:40]} 30. Nb4 {[%clk 0:01:28]}  a5 {[%clk 0:00:37]} 31. Nd3 {[%clk 0:01:28]}  a4 {[%clk 0:00:33]} 32. Nb2 {[%clk 0:01:25]}  b5 {[%clk 0:00:30]} 33. Nd3 {[%clk 0:01:23]}  Kb6 {[%clk 0:00:29]} 34. Nc5 {[%clk 0:01:24]}  a3 {[%clk 0:00:22]} 35. Ne6 {[%clk 0:01:21]}  Re8 {[%clk 0:00:20]} 36. Ng5 {[%clk 0:01:19]}  Ree7 {[%clk 0:00:19]} 37. Nxf7 {[%clk 0:01:18]} 1-0


[Site "https://www.chess.com"]

[Event "Titled Tuesday Blitz March 29 Early 2022"]
[White "Gabdrakhmanov, Azat"]
[Black "Timofeev, Artyom"]
[WhiteFideId "34189197"]
[BlackFideId "4140419"]
[WhiteElo "2279"]
[BlackElo "2594"]
[Result "0-1"]
[Round "06"]
[TimeControl "180+1"]
[Date "2022.03.29"]
[WhiteClock "0:00:07"]
[BlackClock "0:00:21"]

1. e4 {[%clk 0:03:00]}  c5 {[%clk 0:02:59]} 2. Nf3 {[%clk 0:03:00]}  Nc6 {[%clk 0:03:00]} 3. d4 {[%clk 0:03:01]}  cxd4 {[%clk 0:02:59]} 4. Nxd4 {[%clk 0:03:02]}  e5 {[%clk 0:03:00]} 5. Nb5 {[%clk 0:03:02]}  a6 {[%clk 0:03:00]} 6. N5c3 {[%clk 0:02:56]}  Bc5 {[%clk 0:02:58]} 7. Be2 {[%clk 0:02:48]}  d6 {[%clk 0:02:58]} 8. O-O {[%clk 0:02:45]}  Nf6 {[%clk 0:02:52]} 9. Bg5 {[%clk 0:02:45]}  h6 {[%clk 0:02:52]} 10. Bh4 {[%clk 0:02:44]}  g5 {[%clk 0:02:50]} 11. Bg3 {[%clk 0:02:44]}  Be6 {[%clk 0:02:50]} 12. Nd2 {[%clk 0:02:38]}  Nd4 {[%clk 0:02:44]} 13. Nb3 {[%clk 0:02:26]}  Nxb3 {[%clk 0:02:38]} 14. axb3 {[%clk 0:02:25]}  Bd4 {[%clk 0:02:38]} 15. Kh1 {[%clk 0:02:16]}  Bxc3 {[%clk 0:02:25]} 16. bxc3 {[%clk 0:02:16]}  Nxe4 {[%clk 0:02:25]} 17. Qd3 {[%clk 0:02:03]}  Nxg3+ {[%clk 0:02:18]} 18. fxg3 {[%clk 0:02:03]}  Qc7 {[%clk 0:02:15]} 19. Rf6 {[%clk 0:02:00]}  O-O-O {[%clk 0:02:13]} 20. b4 {[%clk 0:01:49]}  Kb8 {[%clk 0:02:07]} 21. b5 {[%clk 0:01:43]}  a5 {[%clk 0:02:07]} 22. b6 {[%clk 0:01:44]}  Qxb6 {[%clk 0:02:06]} 23. Rff1 {[%clk 0:01:44]}  e4 {[%clk 0:01:16]} 24. Qxe4 {[%clk 0:01:32]}  Qc6 {[%clk 0:01:17]} 25. Qd4 {[%clk 0:01:21]}  Qc5 {[%clk 0:01:16]} 26. Qd2 {[%clk 0:00:59]}  Rc8 {[%clk 0:01:09]} 27. c4 {[%clk 0:01:00]}  Qb4 {[%clk 0:01:07]} 28. c3 {[%clk 0:00:57]}  Qc5 {[%clk 0:01:07]} 29. Rfb1 {[%clk 0:00:55]}  Bd7 {[%clk 0:01:04]} 30. Bf3 {[%clk 0:00:48]}  Bc6 {[%clk 0:01:04]} 31. Bxc6 {[%clk 0:00:44]}  Rxc6 {[%clk 0:01:04]} 32. Rb5 {[%clk 0:00:42]}  Qxc4 {[%clk 0:01:05]} 33. Rbxa5 {[%clk 0:00:42]}  Kc7 {[%clk 0:01:03]} 34. Qf2 {[%clk 0:00:33]}  Re8 {[%clk 0:01:01]} 35. h3 {[%clk 0:00:33]}  Re2 {[%clk 0:00:54]} 36. Qf3 {[%clk 0:00:28]}  Re5 {[%clk 0:00:41]} 37. Ra8 {[%clk 0:00:20]}  Qe6 {[%clk 0:00:36]} 38. Rf1 {[%clk 0:00:19]}  f5 {[%clk 0:00:35]} 39. Qf2 {[%clk 0:00:15]}  Rcc5 {[%clk 0:00:32]} 40. Qb2 {[%clk 0:00:14]}  Re1 {[%clk 0:00:26]} 41. Rxe1 {[%clk 0:00:11]}  Qxe1+ {[%clk 0:00:26]} 42. Kh2 {[%clk 0:00:11]}  Qxc3 {[%clk 0:00:26]} 43. Qe2 {[%clk 0:00:10]}  Qe5 {[%clk 0:00:26]} 44. Qd1 {[%clk 0:00:06]}  f4 {[%clk 0:00:24]} 45. gxf4 {[%clk 0:00:06]}  Qxf4+ {[%clk 0:00:25]} 46. g3 {[%clk 0:00:07]}  Qf2+ {[%clk 0:00:22]} 47. Kh1 {[%clk 0:00:07]}  Rc2 {[%clk 0:00:21]} 0-1


[Site "https://www.chess.com"]

[Event "Titled Tuesday Blitz March 29 Early 2022"]
[White "Garagulya, Konstantin"]
[Black "Gaehwiler, Gabriel"]
[WhiteFideId "4128931"]
[BlackFideId "1314530"]
[WhiteElo "2329"]
[BlackElo "2383"]
[Result "0-1"]
[Round "06"]
[TimeControl "180+1"]
[Date "2022.03.30"]
[WhiteClock "0:00:01"]
[BlackClock "0:00:43"]

1. d4 {[%clk 0:01:48]}  Nf6 {[%clk 0:02:58]} 2. Nf3 {[%clk 0:01:48]}  g6 {[%clk 0:02:59]} 3. Nc3 {[%clk 0:01:48]}  d5 {[%clk 0:02:57]} 4. Bf4 {[%clk 0:01:47]}  Bg7 {[%clk 0:02:56]} 5. e3 {[%clk 0:01:48]}  c6 {[%clk 0:02:56]} 6. Bd3 {[%clk 0:01:47]}  Bg4 {[%clk 0:02:56]} 7. h3 {[%clk 0:01:47]}  Bxf3 {[%clk 0:02:56]} 8. Qxf3 {[%clk 0:01:48]}  Nbd7 {[%clk 0:02:57]} 9. g4 {[%clk 0:01:48]}  a5 {[%clk 0:02:49]} 10. a4 {[%clk 0:01:46]}  Qb6 {[%clk 0:02:47]} 11. Rb1 {[%clk 0:01:40]}  O-O {[%clk 0:02:37]} 12. O-O {[%clk 0:01:40]}  Rae8 {[%clk 0:02:32]} 13. Qg3 {[%clk 0:01:40]}  Qb4 {[%clk 0:02:08]} 14. Bc7 {[%clk 0:01:20]}  Rc8 {[%clk 0:01:57]} 15. Ne2 {[%clk 0:00:58]}  Ne8 {[%clk 0:01:38]} 16. Bf4 {[%clk 0:00:58]}  e5 {[%clk 0:01:26]} 17. dxe5 {[%clk 0:00:51]}  Qe7 {[%clk 0:01:26]} 18. Rfd1 {[%clk 0:00:16]}  Nxe5 {[%clk 0:01:22]} 19. b3 {[%clk 0:00:16]}  Nd6 {[%clk 0:01:19]} 20. Nd4 {[%clk 0:00:15]}  Rfe8 {[%clk 0:01:17]} 21. Nf3 {[%clk 0:00:15]}  f6 {[%clk 0:01:06]} 22. Qg2 {[%clk 0:00:11]}  Ra8 {[%clk 0:01:03]} 23. Nd4 {[%clk 0:00:08]}  Ndf7 {[%clk 0:00:57]} 24. Be2 {[%clk 0:00:07]}  Qb4 {[%clk 0:00:56]} 25. c4 {[%clk 0:00:06]}  dxc4 {[%clk 0:00:46]} 26. bxc4 {[%clk 0:00:06]}  Qe7 {[%clk 0:00:46]} 27. Rb2 {[%clk 0:00:02]}  Red8 {[%clk 0:00:46]} 28. Rdb1 {[%clk 0:00:02]}  Rd7 {[%clk 0:00:46]} 29. Rb3 {[%clk 0:00:01]}  Rad8 {[%clk 0:00:43]} 0-1


[Site "https://www.chess.com"]

[Event "Titled Tuesday Blitz March 29 Early 2022"]
[White "Guz, Ari"]
[Black "Jaskolka, Tomasz"]
[WhiteFideId "2825759"]
[BlackFideId "1170791"]
[WhiteElo "1913"]
[BlackElo "2073"]
[Result "1-0"]
[Round "06"]
[TimeControl "180+1"]
[Date "2022.03.30"]
[WhiteClock "0:00:18"]
[BlackClock "0:00:03"]

1. e4 {[%clk 0:03:00]}  c5 {[%clk 0:02:59]} 2. Nf3 {[%clk 0:02:58]}  e6 {[%clk 0:02:59]} 3. c3 {[%clk 0:02:58]}  Nf6 {[%clk 0:02:59]} 4. e5 {[%clk 0:02:58]}  Nd5 {[%clk 0:02:59]} 5. d4 {[%clk 0:02:59]}  cxd4 {[%clk 0:02:57]} 6. cxd4 {[%clk 0:02:59]}  Nc6 {[%clk 0:02:54]} 7. Bc4 {[%clk 0:02:56]}  d6 {[%clk 0:02:54]} 8. exd6 {[%clk 0:02:48]}  Bxd6 {[%clk 0:02:54]} 9. O-O {[%clk 0:02:47]}  O-O {[%clk 0:02:53]} 10. Nc3 {[%clk 0:02:47]}  b6 {[%clk 0:02:43]} 11. Bg5 {[%clk 0:02:38]}  Be7 {[%clk 0:02:36]} 12. Bxd5 {[%clk 0:02:32]}  exd5 {[%clk 0:02:34]} 13. Bxe7 {[%clk 0:02:32]}  Nxe7 {[%clk 0:02:34]} 14. Ne5 {[%clk 0:02:31]}  Bb7 {[%clk 0:02:27]} 15. Re1 {[%clk 0:02:30]}  Re8 {[%clk 0:02:26]} 16. Qf3 {[%clk 0:02:23]}  f6 {[%clk 0:02:21]} 17. Nd3 {[%clk 0:02:22]}  Ng6 {[%clk 0:02:16]} 18. g3 {[%clk 0:02:20]}  Qd7 {[%clk 0:02:14]} 19. h4 {[%clk 0:02:19]}  Re4 {[%clk 0:02:02]} 20. h5 {[%clk 0:02:14]}  Nf8 {[%clk 0:02:02]} 21. Nf4 {[%clk 0:02:02]}  Rxd4 {[%clk 0:01:56]} 22. h6 {[%clk 0:02:02]}  Ng6 {[%clk 0:01:22]} 23. Ne6 {[%clk 0:01:46]}  Rc4 {[%clk 0:00:56]} 24. Nxg7 {[%clk 0:01:14]}  Rf8 {[%clk 0:00:37]} 25. Nh5 {[%clk 0:00:46]}  f5 {[%clk 0:00:24]} 26. Qe2 {[%clk 0:00:32]}  Rc6 {[%clk 0:00:14]} 27. Rad1 {[%clk 0:00:29]}  d4 {[%clk 0:00:14]} 28. Nb5 {[%clk 0:00:26]}  Rc5 {[%clk 0:00:12]} 29. Nxd4 {[%clk 0:00:22]}  Qd5 {[%clk 0:00:11]} 30. Qe6+ {[%clk 0:00:22]}  Kh8 {[%clk 0:00:10]} 31. Qxd5 {[%clk 0:00:21]}  Rxd5 {[%clk 0:00:11]} 32. Ne6 {[%clk 0:00:21]}  Rxd1 {[%clk 0:00:06]} 33. Rxd1 {[%clk 0:00:21]}  Re8 {[%clk 0:00:07]} 34. Nf6 {[%clk 0:00:19]}  Rc8 {[%clk 0:00:04]} 35. Ng5 {[%clk 0:00:19]}  Ne5 {[%clk 0:00:03]} 36. f4 {[%clk 0:00:18]}  Nf3+ {[%clk 0:00:03]} 37. Nxf3 {[%clk 0:00:18]}  Bxf3 {[%clk 0:00:04]} 38. Rd7 {[%clk 0:00:19]}  Rc1+ {[%clk 0:00:02]} 39. Kf2 {[%clk 0:00:19]}  Bg4 {[%clk 0:00:03]} 40. Rd8# {[%clk 0:00:18]} 1-0


[Site "https://www.chess.com"]

[Event "Titled Tuesday Blitz March 29 Early 2022"]
[White "Hakobyan, Aram"]
[Black "Zhao, Jun"]
[WhiteFideId "13306677"]
[BlackFideId "8602522"]
[WhiteElo "2557"]
[BlackElo "2547"]
[Result "1/2-1/2"]
[Round "06"]
[TimeControl "180+1"]
[Date "2022.03.29"]
[WhiteClock "0:00:36"]
[BlackClock "0:00:31"]

1. d4 {[%clk 0:03:00]}  Nf6 {[%clk 0:02:58]} 2. c4 {[%clk 0:03:01]}  e6 {[%clk 0:02:59]} 3. Nc3 {[%clk 0:03:02]}  Bb4 {[%clk 0:02:58]} 4. e3 {[%clk 0:03:02]}  O-O {[%clk 0:02:57]} 5. Bd3 {[%clk 0:03:03]}  d5 {[%clk 0:02:54]} 6. a3 {[%clk 0:03:01]}  Bxc3+ {[%clk 0:02:49]} 7. bxc3 {[%clk 0:03:02]}  c5 {[%clk 0:02:49]} 8. Ne2 {[%clk 0:03:01]}  dxc4 {[%clk 0:02:47]} 9. Bxc4 {[%clk 0:03:02]}  Qc7 {[%clk 0:02:48]} 10. Ba2 {[%clk 0:03:02]}  b6 {[%clk 0:02:46]} 11. O-O {[%clk 0:03:02]}  Ba6 {[%clk 0:02:45]} 12. Bb2 {[%clk 0:03:02]}  Nbd7 {[%clk 0:02:38]} 13. Rc1 {[%clk 0:02:59]}  Rac8 {[%clk 0:02:37]} 14. c4 {[%clk 0:02:59]}  Bb7 {[%clk 0:02:35]} 15. d5 {[%clk 0:02:59]}  Qd6 {[%clk 0:02:12]} 16. Ng3 {[%clk 0:02:47]}  exd5 {[%clk 0:02:01]} 17. cxd5 {[%clk 0:02:48]}  Rfe8 {[%clk 0:01:42]} 18. Nf5 {[%clk 0:02:48]}  Qf8 {[%clk 0:01:42]} 19. Qf3 {[%clk 0:02:23]}  Ne5 {[%clk 0:01:23]} 20. Qg3 {[%clk 0:02:22]}  Ne4 {[%clk 0:00:41]} 21. Nh6+ {[%clk 0:01:50]}  Kh8 {[%clk 0:00:40]} 22. Qf4 {[%clk 0:01:51]}  Nd3 {[%clk 0:00:33]} 23. Nxf7+ {[%clk 0:01:25]}  Kg8 {[%clk 0:00:32]} 24. Nh6+ {[%clk 0:01:17]}  Kh8 {[%clk 0:00:30]} 25. Nf7+ {[%clk 0:00:50]}  Kg8 {[%clk 0:00:31]} 26. Nh6+ {[%clk 0:00:50]}  Kh8 {[%clk 0:00:31]} 27. Nf7+ {[%clk 0:00:36]} 1/2-1/2


[Site "https://www.chess.com"]